[Event "*** SCC Grand Prix: Titled Tuesday Blitz"]
[Site "Chess.com"]
[Date "2020.08.25"]
[Round "9"]
[White "PavelShkapenko"]
[Black "elohunter1999"]
[Result "0-1"]
[WhiteElo "2613"]
[BlackElo "2480"]
[TimeControl "180+1"]
[EndTime "11:47:31 PDT"]
[Termination "elohunter1999 won by resignation"]

1. e4 {[%clk 0:03:00.9]} 1... e5 {[%clk 0:02:59.5]} 2. Nf3 {[%clk 0:03:00.5]}
2... Nc6 {[%clk 0:03:00]} 3. g3 {[%clk 0:03:00.3]} 3... Nf6 {[%clk 0:02:58.9]}
4. d3 {[%clk 0:03:00.4]} 4... d5 {[%clk 0:02:58.2]} 5. exd5 {[%clk 0:03:00.9]}
5... Nxd5 {[%clk 0:02:58.5]} 6. Bg2 {[%clk 0:03:01.1]} 6... g6 {[%clk
0:02:49.5]} 7. O-O {[%clk 0:03:00.1]} 7... Bg7 {[%clk 0:02:49.9]} 8. c3 {[%clk
0:02:57.3]} 8... O-O {[%clk 0:02:50.1]} 9. b4 {[%clk 0:02:57.4]} 9... a6 {[%clk
0:02:47.7]} 10. Bb2 {[%clk 0:02:52.5]} 10... e4 {[%clk 0:02:44.3]} 11. dxe4
{[%clk 0:02:51.9]} 11... Ndxb4 {[%clk 0:02:44.4]} 12. Ba3 {[%clk 0:02:23]} 12...
Re8 {[%clk 0:02:43.2]} 13. Qe2 {[%clk 0:02:17.6]} 13... Qd3 {[%clk 0:02:40.8]}
14. Qxd3 {[%clk 0:02:16.9]} 14... Nxd3 {[%clk 0:02:41.7]} 15. Rd1 {[%clk
0:02:16.5]} 15... Ndb4 {[%clk 0:02:33.3]} 16. Ne1 {[%clk 0:02:03.8]} 16... Bg4
{[%clk 0:02:27.9]} 17. f3 {[%clk 0:02:01.7]} 17... Be6 {[%clk 0:02:26.5]} 18.
Bxb4 {[%clk 0:01:52.4]} 18... Nxb4 {[%clk 0:02:26.2]} 19. a3 {[%clk 0:01:50.9]}
19... Na2 {[%clk 0:02:16.6]} 20. Rd3 {[%clk 0:01:40.1]} 20... Rad8 {[%clk
0:02:14.9]} 21. Kf2 {[%clk 0:01:25.3]} 21... Rxd3 {[%clk 0:02:09.8]} 22. Nxd3
{[%clk 0:01:25.3]} 22... Nxc3 {[%clk 0:02:10.4]} 23. Nxc3 {[%clk 0:01:25.4]}
23... Bxc3 {[%clk 0:02:11.3]} 24. Rc1 {[%clk 0:01:25.2]} 24... Bd4+ {[%clk
0:02:10.5]} 25. Ke2 {[%clk 0:01:25.7]} 25... c6 {[%clk 0:02:07.4]} 26. Kd2
{[%clk 0:01:23.2]} 26... Rd8 {[%clk 0:02:05.4]} 27. f4 {[%clk 0:01:19.5]} 27...
c5 {[%clk 0:01:45.7]} 28. Ke2 {[%clk 0:01:19.4]} 28... c4 {[%clk 0:01:35.4]} 29.
Nb4 {[%clk 0:01:07.1]} 29... Bb2 {[%clk 0:01:35]} 30. Rb1 {[%clk 0:01:07.3]}
30... Bxa3 {[%clk 0:01:31.4]} 31. Nc2 {[%clk 0:01:07]} 31... Bg4+ {[%clk
0:01:23.7]} 32. Ke1 {[%clk 0:00:49]} 32... Bc5 {[%clk 0:01:11.3]} 33. h3 {[%clk
0:00:48.9]} 33... Bc8 {[%clk 0:01:11]} 34. Ke2 {[%clk 0:00:43.4]} 34... b5
{[%clk 0:01:09.9]} 35. Ne3 {[%clk 0:00:43.5]} 35... Rd3 {[%clk 0:01:08.9]} 36.
Nd5 {[%clk 0:00:43.1]} 36... Rxg3 {[%clk 0:01:06.8]} 37. Bf3 {[%clk 0:00:43.4]}
37... Rxh3 {[%clk 0:01:04.7]} 38. Rd1 {[%clk 0:00:18]} 38... Rh2+ {[%clk
0:01:01.5]} 39. Ke1 {[%clk 0:00:18.3]} 39... Bh3 {[%clk 0:00:57.2]} 40. Rd2
{[%clk 0:00:17.1]} 40... Rxd2 {[%clk 0:00:49]} 41. Kxd2 {[%clk 0:00:17.7]} 41...
Be6 {[%clk 0:00:48.8]} 42. Nc7 {[%clk 0:00:17.7]} 42... Bc8 {[%clk 0:00:47.4]}
43. e5 {[%clk 0:00:18]} 43... h5 {[%clk 0:00:46.5]} 44. Nd5 {[%clk 0:00:15.8]}
44... h4 {[%clk 0:00:45.8]} 45. Nf6+ {[%clk 0:00:16.3]} 45... Kg7 {[%clk
0:00:45.9]} 46. Ne4 {[%clk 0:00:16.9]} 46... Be7 {[%clk 0:00:43]} 47. Nd6 {[%clk
0:00:15.7]} 47... Bxd6 {[%clk 0:00:43]} 48. exd6 {[%clk 0:00:15.8]} 48... Bd7
{[%clk 0:00:43.9]} 49. Kc3 {[%clk 0:00:14.6]} 49... Kf6 {[%clk 0:00:44.3]} 50.
Kb4 {[%clk 0:00:14.7]} 50... Kf5 {[%clk 0:00:44.3]} 51. Kc5 {[%clk 0:00:13.7]}
51... Kxf4 {[%clk 0:00:42.1]} 52. Bc6 {[%clk 0:00:12.7]} 52... Bf5 {[%clk
0:00:40.1]} 53. d7 {[%clk 0:00:10.5]} 53... Bxd7 {[%clk 0:00:39.9]} 54. Bxd7
{[%clk 0:00:11.1]} 54... c3 {[%clk 0:00:40.8]} 0-1

[Event "*** SCC Grand Prix: Titled Tuesday Blitz"]
[Site "Chess.com"]
[Date "2020.08.25"]
[Round "9"]
[White "annacramling"]
[Black "teacher4chess"]
[Result "0-1"]
[WhiteElo "2105"]
[BlackElo "2033"]
[TimeControl "180+1"]
[EndTime "11:47:34 PDT"]
[Termination "teacher4chess won by resignation"]

1. d4 {[%clk 0:03:00.9]} 1... e6 {[%clk 0:02:58]} 2. c4 {[%clk 0:03:01.3]} 2...
b6 {[%clk 0:02:58.4]} 3. Nc3 {[%clk 0:03:01.7]} 3... Bb7 {[%clk 0:02:57.9]} 4.
e4 {[%clk 0:03:02.4]} 4... Bb4 {[%clk 0:02:57.9]} 5. Qg4 {[%clk 0:02:33.5]} 5...
Qf6 {[%clk 0:02:16]} 6. e5 {[%clk 0:02:32.1]} 6... Qg6 {[%clk 0:02:14.5]} 7.
Qxg6 {[%clk 0:02:18.7]} 7... hxg6 {[%clk 0:02:14]} 8. Bd2 {[%clk 0:02:15.1]}
8... Ne7 {[%clk 0:02:12.3]} 9. f3 {[%clk 0:02:08.8]} 9... Nf5 {[%clk 0:02:11.4]}
10. Nge2 {[%clk 0:02:06.1]} 10... Bxc3 {[%clk 0:02:08.5]} 11. Bxc3 {[%clk
0:02:04.5]} 11... Ne3 {[%clk 0:02:08.1]} 12. Ng3 {[%clk 0:01:52.4]} 12... Nxf1
{[%clk 0:02:08.1]} 13. Kxf1 {[%clk 0:01:45.9]} 13... a5 {[%clk 0:02:03.5]} 14.
Ke2 {[%clk 0:01:40.3]} 14... Ba6 {[%clk 0:02:01]} 15. b3 {[%clk 0:01:38.9]}
15... d5 {[%clk 0:02:00.3]} 16. Kd3 {[%clk 0:01:37.5]} 16... Nc6 {[%clk
0:01:53.8]} 17. a3 {[%clk 0:01:27.1]} 17... O-O-O {[%clk 0:01:50.7]} 18. Rae1
{[%clk 0:01:14.2]} 18... Rh4 {[%clk 0:01:05.2]} 19. Kc2 {[%clk 0:00:25.4]} 19...
dxc4 {[%clk 0:01:04.9]} 20. bxc4 {[%clk 0:00:26.3]} 20... Nxd4+ {[%clk
0:01:00.4]} 21. Bxd4 {[%clk 0:00:24.3]} 21... Rhxd4 {[%clk 0:01:00]} 22. Re4
{[%clk 0:00:18.3]} 22... Rxc4+ {[%clk 0:00:56.7]} 23. Rxc4 {[%clk 0:00:17.7]}
23... Bxc4 {[%clk 0:00:56.8]} 24. Kc3 {[%clk 0:00:17.5]} 24... b5 {[%clk
0:00:54.8]} 25. Rc1 {[%clk 0:00:12]} 25... Rd3+ {[%clk 0:00:53.9]} 26. Kb2
{[%clk 0:00:11.9]} 26... Rd2+ {[%clk 0:00:53.1]} 27. Kc3 {[%clk 0:00:11]} 27...
Rxg2 {[%clk 0:00:52.4]} 28. Ne4 {[%clk 0:00:09.3]} 28... Rxh2 {[%clk 0:00:48.1]}
29. Kd4 {[%clk 0:00:05.7]} 29... Ra2 {[%clk 0:00:42.7]} 30. Rc3 {[%clk
0:00:04.6]} 30... Bd5 {[%clk 0:00:33.4]} 31. Nc5 {[%clk 0:00:04.3]} 31... c6
{[%clk 0:00:32.3]} 32. a4 {[%clk 0:00:04]} 32... b4 {[%clk 0:00:31.5]} 33. Rc1
{[%clk 0:00:03.5]} 33... Rd2+ {[%clk 0:00:30.8]} 34. Ke3 {[%clk 0:00:03.4]}
34... Rb2 {[%clk 0:00:29.1]} 35. Nd3 {[%clk 0:00:03.2]} 35... Rb3 {[%clk
0:00:28.9]} 36. Kd2 {[%clk 0:00:02.6]} 36... Ra3 {[%clk 0:00:28.3]} 37. Nf4
{[%clk 0:00:02.5]} 37... Bxf3 {[%clk 0:00:27.2]} 38. Ne2 {[%clk 0:00:01.8]}
38... Bxe2 {[%clk 0:00:26.8]} 39. Kxe2 {[%clk 0:00:01.9]} 39... Kc7 {[%clk
0:00:27]} 40. Rc5 {[%clk 0:00:02.3]} 40... Kb6 {[%clk 0:00:27]} 41. Rc3 {[%clk
0:00:02.2]} 41... Rxc3 {[%clk 0:00:26.5]} 0-1

[Event "*** SCC Grand Prix: Titled Tuesday Blitz"]
[Site "Chess.com"]
[Date "2020.08.25"]
[Round "9"]
[White "Rhinos1"]
[Black "karwowskikacper"]
[Result "0-1"]
[WhiteElo "2228"]
[BlackElo "2397"]
[TimeControl "180+1"]
[EndTime "11:47:37 PDT"]
[Termination "karwowskikacper won on time"]

1. e4 {[%clk 0:03:00.9]} 1... c5 {[%clk 0:02:45.3]} 2. d4 {[%clk 0:03:00.2]}
2... cxd4 {[%clk 0:02:41.9]} 3. c3 {[%clk 0:03:00.1]} 3... dxc3 {[%clk
0:02:41.9]} 4. Nxc3 {[%clk 0:03:01]} 4... d6 {[%clk 0:02:38.9]} 5. Nf3 {[%clk
0:03:00.9]} 5... Nc6 {[%clk 0:02:39.1]} 6. Bc4 {[%clk 0:03:00.9]} 6... e6 {[%clk
0:02:38.2]} 7. O-O {[%clk 0:03:00.8]} 7... Be7 {[%clk 0:02:38.6]} 8. Qe2 {[%clk
0:03:01.1]} 8... Nf6 {[%clk 0:02:38.8]} 9. Rd1 {[%clk 0:03:01.6]} 9... Qc7
{[%clk 0:02:35.5]} 10. Bf4 {[%clk 0:03:01.7]} 10... Ne5 {[%clk 0:02:30.1]} 11.
Bxe5 {[%clk 0:02:59.1]} 11... dxe5 {[%clk 0:02:31]} 12. Rac1 {[%clk 0:02:59.3]}
12... Bd7 {[%clk 0:02:27.1]} 13. Nb5 {[%clk 0:02:56]} 13... Qb6 {[%clk
0:02:20.4]} 14. Nxe5 {[%clk 0:02:54]} 14... O-O {[%clk 0:02:16.7]} 15. Nxd7
{[%clk 0:02:53.1]} 15... Nxd7 {[%clk 0:02:17.6]} 16. Rxd7 {[%clk 0:02:53.1]}
16... Bg5 {[%clk 0:02:16.4]} 17. Rcd1 {[%clk 0:02:45.7]} 17... Rac8 {[%clk
0:02:13.9]} 18. Bb3 {[%clk 0:02:33.4]} 18... a6 {[%clk 0:02:11]} 19. Nc3 {[%clk
0:02:29.8]} 19... Qb4 {[%clk 0:02:11.1]} 20. Qh5 {[%clk 0:02:12.6]} 20... Bf6
{[%clk 0:02:06.3]} 21. e5 {[%clk 0:02:07.4]} 21... Rc5 {[%clk 0:02:04.5]} 22.
Qf3 {[%clk 0:01:25.9]} 22... Rxe5 {[%clk 0:02:02.2]} 23. Qxb7 {[%clk 0:01:24.9]}
23... Qg4 {[%clk 0:01:56.1]} 24. Qf3 {[%clk 0:01:18.1]} 24... Qg6 {[%clk
0:01:54]} 25. R7d4 {[%clk 0:01:13.1]} 25... h5 {[%clk 0:01:34.7]} 26. Qd3 {[%clk
0:01:06.6]} 26... Rf5 {[%clk 0:01:25.3]} 27. Bc2 {[%clk 0:00:59.8]} 27... Qh6
{[%clk 0:00:36]} 28. Rd6 {[%clk 0:00:51.4]} 28... a5 {[%clk 0:00:36.3]} 29. Qe3
{[%clk 0:00:45]} 29... Bg5 {[%clk 0:00:31.6]} 30. Qg3 {[%clk 0:00:36.9]} 30...
Bf4 {[%clk 0:00:29.4]} 31. Qh3 {[%clk 0:00:30.4]} 31... Bxd6 {[%clk 0:00:20.6]}
32. Bxf5 {[%clk 0:00:28.7]} 32... exf5 {[%clk 0:00:21.5]} 33. Qxf5 {[%clk
0:00:24.1]} 33... Bb4 {[%clk 0:00:20.7]} 34. Nd5 {[%clk 0:00:22.5]} 34... Qd6
{[%clk 0:00:19]} 35. h3 {[%clk 0:00:06.9]} 35... Rd8 {[%clk 0:00:10.6]} 36. a3
{[%clk 0:00:06.4]} 36... Bc5 {[%clk 0:00:10.4]} 37. Nc3 {[%clk 0:00:06.2]} 37...
Bd4 {[%clk 0:00:04.2]} 38. Nb5 {[%clk 0:00:04.1]} 38... Bxf2+ {[%clk 0:00:04]}
0-1

[Event "*** SCC Grand Prix: Titled Tuesday Blitz"]
[Site "Chess.com"]
[Date "2020.08.25"]
[Round "9"]
[White "Noam_Vitenberg"]
[Black "kngopal"]
[Result "1-0"]
[WhiteElo "2520"]
[BlackElo "2299"]
[TimeControl "180+1"]
[EndTime "11:47:38 PDT"]
[Termination "Noam_Vitenberg won on time"]

1. Nf3 {[%clk 0:03:00.9]} 1... d5 {[%clk 0:02:47.8]} 2. d4 {[%clk 0:03:00.2]}
2... Nf6 {[%clk 0:02:46.5]} 3. c4 {[%clk 0:02:55.6]} 3... c6 {[%clk 0:02:46.3]}
4. Nc3 {[%clk 0:02:55]} 4... e6 {[%clk 0:02:46.1]} 5. Bg5 {[%clk 0:02:54.2]}
5... Be7 {[%clk 0:02:45.4]} 6. e3 {[%clk 0:02:54.3]} 6... Nbd7 {[%clk
0:02:45.1]} 7. cxd5 {[%clk 0:02:54.2]} 7... exd5 {[%clk 0:02:44.1]} 8. Bd3
{[%clk 0:02:54.6]} 8... h6 {[%clk 0:02:43.2]} 9. Bh4 {[%clk 0:02:54.4]} 9... Ne4
{[%clk 0:02:41.5]} 10. Bxe7 {[%clk 0:02:51.9]} 10... Qxe7 {[%clk 0:02:40.8]} 11.
O-O {[%clk 0:02:52.2]} 11... O-O {[%clk 0:02:38.5]} 12. Qc2 {[%clk 0:02:46.4]}
12... f5 {[%clk 0:02:35]} 13. Rab1 {[%clk 0:02:45.7]} 13... g5 {[%clk
0:02:15.7]} 14. b4 {[%clk 0:02:44.9]} 14... g4 {[%clk 0:02:15.1]} 15. Nd2 {[%clk
0:02:45.2]} 15... Ndf6 {[%clk 0:02:10.5]} 16. b5 {[%clk 0:02:36.3]} 16... Bd7
{[%clk 0:01:57.5]} 17. bxc6 {[%clk 0:02:35.3]} 17... Bxc6 {[%clk 0:01:57.5]} 18.
Rbe1 {[%clk 0:02:06.8]} 18... Qe6 {[%clk 0:01:37]} 19. f3 {[%clk 0:02:04.4]}
19... gxf3 {[%clk 0:01:35.8]} 20. gxf3 {[%clk 0:02:02.3]} 20... Nd6 {[%clk
0:01:31.1]} 21. Nb3 {[%clk 0:01:45.3]} 21... Nh5 {[%clk 0:01:19]} 22. Nc5 {[%clk
0:01:45.2]} 22... Qf6 {[%clk 0:01:18.6]} 23. Qb3 {[%clk 0:01:27.8]} 23... f4
{[%clk 0:01:15.5]} 24. Nxd5 {[%clk 0:01:27.3]} 24... Qg5+ {[%clk 0:01:14.8]} 25.
Kh1 {[%clk 0:01:27.6]} 25... Qxd5 {[%clk 0:01:13.4]} 26. e4 {[%clk 0:01:09]}
26... Qxb3 {[%clk 0:01:07.1]} 27. axb3 {[%clk 0:01:09.9]} 27... Bb5 {[%clk
0:01:01.9]} 28. d5 {[%clk 0:01:04.6]} 28... Rac8 {[%clk 0:00:54.6]} 29. Bxb5
{[%clk 0:01:04.6]} 29... Nxb5 {[%clk 0:00:53.6]} 30. Ne6 {[%clk 0:01:04.5]}
30... Rfe8 {[%clk 0:00:50.3]} 31. Rg1+ {[%clk 0:01:04]} 31... Kf7 {[%clk
0:00:47.2]} 32. Rg4 {[%clk 0:01:00.1]} 32... Rg8 {[%clk 0:00:42.6]} 33. Rh4
{[%clk 0:00:58.5]} 33... Ng3+ {[%clk 0:00:10.9]} 34. hxg3 {[%clk 0:00:57.6]}
34... fxg3 {[%clk 0:00:11.8]} 35. Nf4 {[%clk 0:00:49.3]} 35... Rc2 {[%clk
0:00:11.1]} 36. Ne2 {[%clk 0:00:34.2]} 36... g2+ {[%clk 0:00:07.7]} 37. Kg1
{[%clk 0:00:34.2]} 37... Rb2 {[%clk 0:00:06.1]} 38. e5 {[%clk 0:00:32.9]} 38...
Ke7 {[%clk 0:00:04.3]} 39. d6+ {[%clk 0:00:31.2]} 39... Ke6 {[%clk 0:00:04.4]}
40. Nf4+ {[%clk 0:00:31.2]} 40... Kd7 {[%clk 0:00:03.8]} 41. Rxh6 {[%clk
0:00:28.5]} 41... Nd4 {[%clk 0:00:03]} 42. Rh7+ {[%clk 0:00:28.6]} 42... Kc6
{[%clk 0:00:02.4]} 43. Rh3 {[%clk 0:00:27.1]} 1-0

[Event "*** SCC Grand Prix: Titled Tuesday Blitz"]
[Site "Chess.com"]
[Date "2020.08.25"]
[Round "9"]
[White "kasparicy"]
[Black "SilviusTiberius"]
[Result "0-1"]
[WhiteElo "2331"]
[BlackElo "2466"]
[TimeControl "180+1"]
[EndTime "11:47:39 PDT"]
[Termination "SilviusTiberius won on time"]

1. e4 {[%clk 0:03:00.9]} 1... c5 {[%clk 0:02:58.8]} 2. Nf3 {[%clk 0:02:59.5]}
2... Nc6 {[%clk 0:02:59.1]} 3. d4 {[%clk 0:03:00]} 3... cxd4 {[%clk 0:02:59.6]}
4. Nxd4 {[%clk 0:03:00.9]} 4... Nf6 {[%clk 0:03:00]} 5. Nc3 {[%clk 0:03:01.3]}
5... d6 {[%clk 0:03:00.4]} 6. Be3 {[%clk 0:03:00.4]} 6... Ng4 {[%clk 0:03:00]}
7. Bb5 {[%clk 0:03:00.3]} 7... Nxe3 {[%clk 0:03:00.3]} 8. fxe3 {[%clk
0:03:01.2]} 8... Bd7 {[%clk 0:03:00.4]} 9. O-O {[%clk 0:03:01.3]} 9... e6 {[%clk
0:03:00.7]} 10. Bxc6 {[%clk 0:03:01]} 10... bxc6 {[%clk 0:03:01.1]} 11. e5
{[%clk 0:02:34.3]} 11... Be7 {[%clk 0:02:59]} 12. Qf3 {[%clk 0:02:01.5]} 12...
O-O {[%clk 0:02:56]} 13. Nxc6 {[%clk 0:01:55.4]} 13... Bxc6 {[%clk 0:02:53.2]}
14. Qxc6 {[%clk 0:01:56.3]} 14... Rb8 {[%clk 0:02:45.9]} 15. exd6 {[%clk
0:01:50.2]} 15... Qxd6 {[%clk 0:02:38.5]} 16. Qxd6 {[%clk 0:01:48.7]} 16... Bxd6
{[%clk 0:02:39.4]} 17. Na4 {[%clk 0:01:38.7]} 17... Rfc8 {[%clk 0:02:35.3]} 18.
c3 {[%clk 0:01:30.1]} 18... Rc4 {[%clk 0:02:19.1]} 19. b3 {[%clk 0:01:29.1]}
19... Rh4 {[%clk 0:02:19.4]} 20. g3 {[%clk 0:01:26.4]} 20... Re4 {[%clk
0:02:12.6]} 21. Rad1 {[%clk 0:01:26.6]} 21... Be7 {[%clk 0:01:50.9]} 22. Rd7
{[%clk 0:01:21.6]} 22... Bf6 {[%clk 0:01:29.5]} 23. Rxa7 {[%clk 0:01:19.7]}
23... Rxe3 {[%clk 0:01:28.3]} 24. c4 {[%clk 0:01:20.1]} 24... Re2 {[%clk
0:01:26.8]} 25. Rd7 {[%clk 0:00:58.4]} 25... Rxa2 {[%clk 0:01:24.7]} 26. Rd3
{[%clk 0:00:57.9]} 26... h5 {[%clk 0:01:17.5]} 27. Rf2 {[%clk 0:00:58.1]} 27...
Ra3 {[%clk 0:01:15.3]} 28. c5 {[%clk 0:00:17.4]} 28... Raxb3 {[%clk 0:01:09.3]}
29. Rxb3 {[%clk 0:00:16.8]} 29... Rxb3 {[%clk 0:01:09.9]} 30. Rc2 {[%clk
0:00:17.3]} 30... Ra3 {[%clk 0:01:08.4]} 31. c6 {[%clk 0:00:16]} 31... Be5
{[%clk 0:00:57.6]} 32. Nc5 {[%clk 0:00:10.1]} 32... Bc7 {[%clk 0:00:24.6]} 33.
Ne4 {[%clk 0:00:08.6]} 33... Ra6 {[%clk 0:00:16.3]} 34. Kf2 {[%clk 0:00:07.3]}
34... f6 {[%clk 0:00:16]} 35. Ke3 {[%clk 0:00:07.7]} 35... Kf7 {[%clk
0:00:16.3]} 36. Kd4 {[%clk 0:00:07.9]} 36... Ra4+ {[%clk 0:00:16.3]} 37. Kd3
{[%clk 0:00:06.2]} 37... Ke7 {[%clk 0:00:16.2]} 38. Nc3 {[%clk 0:00:05.2]} 38...
Ra5 {[%clk 0:00:15.6]} 39. Kc4 {[%clk 0:00:03.6]} 39... Bb6 {[%clk 0:00:12.1]}
40. Nb5 {[%clk 0:00:01.1]} 40... Ra4+ {[%clk 0:00:12.1]} 41. Kb3 {[%clk
0:00:01.1]} 41... Ra5 {[%clk 0:00:12]} 0-1

[Event "*** SCC Grand Prix: Titled Tuesday Blitz"]
[Site "Chess.com"]
[Date "2020.08.25"]
[Round "9"]
[White "nrvisakh"]
[Black "RenarddesSurfaces"]
[Result "1-0"]
[WhiteElo "2796"]
[BlackElo "2549"]
[TimeControl "180+1"]
[EndTime "11:47:41 PDT"]
[Termination "nrvisakh won on time"]

1. e4 {[%clk 0:03:00.9]} 1... d6 {[%clk 0:02:59.7]} 2. d4 {[%clk 0:02:56.9]}
2... Nf6 {[%clk 0:03:00.1]} 3. Nc3 {[%clk 0:02:55.5]} 3... Nbd7 {[%clk
0:03:00.6]} 4. Be3 {[%clk 0:02:42.4]} 4... e5 {[%clk 0:02:57.2]} 5. Nf3 {[%clk
0:02:39.8]} 5... Be7 {[%clk 0:02:51.8]} 6. h3 {[%clk 0:02:39.1]} 6... c6 {[%clk
0:02:47.6]} 7. a4 {[%clk 0:02:36.9]} 7... exd4 {[%clk 0:02:39.1]} 8. Nxd4 {[%clk
0:02:35.7]} 8... Nc5 {[%clk 0:02:39]} 9. Qf3 {[%clk 0:02:33.5]} 9... a5 {[%clk
0:02:31.9]} 10. O-O-O {[%clk 0:02:28.2]} 10... O-O {[%clk 0:01:59.7]} 11. e5
{[%clk 0:01:58.1]} 11... Ne8 {[%clk 0:01:29.1]} 12. exd6 {[%clk 0:01:57.4]}
12... Bxd6 {[%clk 0:01:22.1]} 13. Nxc6 {[%clk 0:01:54.2]} 13... bxc6 {[%clk
0:01:20.3]} 14. Bxc5 {[%clk 0:01:54]} 14... Qg5+ {[%clk 0:01:18.7]} 15. Be3
{[%clk 0:01:53.3]} 15... Qe7 {[%clk 0:01:18.7]} 16. Bc4 {[%clk 0:01:49.3]} 16...
Rb8 {[%clk 0:01:12.5]} 17. Rhe1 {[%clk 0:01:47]} 17... Qb7 {[%clk 0:01:11.8]}
18. Bb3 {[%clk 0:01:41.2]} 18... Be6 {[%clk 0:01:08]} 19. Qe4 {[%clk 0:01:21.4]}
19... Bxb3 {[%clk 0:01:02]} 20. cxb3 {[%clk 0:01:22.3]} 20... Qxb3 {[%clk
0:01:01.1]} 21. Qc2 {[%clk 0:01:23.2]} 21... Qb7 {[%clk 0:00:55.8]} 22. Ne4
{[%clk 0:01:22.5]} 22... Bb4 {[%clk 0:00:53.4]} 23. Bc5 {[%clk 0:01:21.1]} 23...
Bxe1 {[%clk 0:00:41.2]} 24. Rxe1 {[%clk 0:01:22]} 24... Nc7 {[%clk 0:00:34.1]}
25. Bxf8 {[%clk 0:01:18.2]} 25... Rxf8 {[%clk 0:00:35]} 26. Ng5 {[%clk
0:01:02.6]} 26... g6 {[%clk 0:00:34.6]} 27. Qc4 {[%clk 0:00:53.6]} 27... Nd5
{[%clk 0:00:29]} 28. Re2 {[%clk 0:00:48.8]} 28... Rb8 {[%clk 0:00:20.5]} 29. Qh4
{[%clk 0:00:28.9]} 29... h5 {[%clk 0:00:15.1]} 30. Qd4 {[%clk 0:00:28.9]} 30...
Qc7 {[%clk 0:00:13.4]} 31. g3 {[%clk 0:00:22.4]} 31... Qd8 {[%clk 0:00:06.4]}
32. h4 {[%clk 0:00:22.6]} 32... Rb4 {[%clk 0:00:06]} 33. Qa7 {[%clk 0:00:16.3]}
33... Qf6 {[%clk 0:00:02]} 34. Qxa5 {[%clk 0:00:11.6]} 34... Rc4+ {[%clk
0:00:01.4]} 35. Kb1 {[%clk 0:00:11.5]} 35... Qf5+ {[%clk 0:00:01.6]} 36. Ka2
{[%clk 0:00:11.2]} 36... Nb4+ {[%clk 0:00:01.2]} 37. Qxb4 {[%clk 0:00:11.1]} 1-0

[Event "*** SCC Grand Prix: Titled Tuesday Blitz"]
[Site "Chess.com"]
[Date "2020.08.25"]
[Round "9"]
[White "Grandmaster2B"]
[Black "BlackBoarder"]
[Result "0-1"]
[WhiteElo "2408"]
[BlackElo "2539"]
[TimeControl "180+1"]
[EndTime "11:47:43 PDT"]
[Termination "BlackBoarder won on time"]

1. e4 {[%clk 0:02:58.8]} 1... e6 {[%clk 0:02:50]} 2. d4 {[%clk 0:02:57.6]} 2...
d5 {[%clk 0:02:47]} 3. Nd2 {[%clk 0:02:56.6]} 3... c5 {[%clk 0:02:46.8]} 4. exd5
{[%clk 0:02:55.8]} 4... Qxd5 {[%clk 0:02:46.7]} 5. Ngf3 {[%clk 0:02:55.7]} 5...
cxd4 {[%clk 0:02:46.2]} 6. Bc4 {[%clk 0:02:54.6]} 6... Qd6 {[%clk 0:02:46.6]} 7.
O-O {[%clk 0:02:55.1]} 7... Nf6 {[%clk 0:02:47.1]} 8. Nb3 {[%clk 0:02:54.2]}
8... Nc6 {[%clk 0:02:47.7]} 9. Nbxd4 {[%clk 0:02:53.5]} 9... Nxd4 {[%clk
0:02:48.6]} 10. Nxd4 {[%clk 0:02:54.4]} 10... a6 {[%clk 0:02:48.6]} 11. Re1
{[%clk 0:02:53.6]} 11... Qc7 {[%clk 0:02:48.5]} 12. Bd3 {[%clk 0:02:48.3]} 12...
Bd6 {[%clk 0:02:48.3]} 13. h3 {[%clk 0:02:46.3]} 13... O-O {[%clk 0:02:39]} 14.
Bg5 {[%clk 0:02:45.4]} 14... Be5 {[%clk 0:02:37.1]} 15. c3 {[%clk 0:02:23.3]}
15... h6 {[%clk 0:02:35]} 16. Nf3 {[%clk 0:02:07.4]} 16... Bf4 {[%clk
0:02:20.5]} 17. Bxf4 {[%clk 0:01:58]} 17... Qxf4 {[%clk 0:02:19.3]} 18. Qe2
{[%clk 0:01:56]} 18... b5 {[%clk 0:02:00.7]} 19. a4 {[%clk 0:01:45]} 19... bxa4
{[%clk 0:01:58.2]} 20. Qe5 {[%clk 0:01:38.7]} 20... Qxe5 {[%clk 0:01:36.5]} 21.
Nxe5 {[%clk 0:01:39.6]} 21... Rb8 {[%clk 0:01:31.9]} 22. Re2 {[%clk 0:01:32.6]}
22... Bd7 {[%clk 0:01:10.4]} 23. Bxa6 {[%clk 0:01:25.3]} 23... Rb6 {[%clk
0:00:51.6]} 24. Bd3 {[%clk 0:01:02.6]} 24... Rfb8 {[%clk 0:00:50.4]} 25. Ra2
{[%clk 0:00:38.5]} 25... Be8 {[%clk 0:00:46]} 26. Bc2 {[%clk 0:00:35.2]} 26...
Nd5 {[%clk 0:00:34]} 27. Bxa4 {[%clk 0:00:24.2]} 27... Ra6 {[%clk 0:00:27]} 28.
Bb3 {[%clk 0:00:15.9]} 28... Rd6 {[%clk 0:00:12.1]} 29. Bxd5 {[%clk 0:00:14.1]}
29... Rxd5 {[%clk 0:00:12.5]} 30. Nf3 {[%clk 0:00:11]} 30... Bb5 {[%clk
0:00:11.8]} 31. Rd2 {[%clk 0:00:07.7]} 31... Bc4 {[%clk 0:00:10.9]} 32. Ra4
{[%clk 0:00:06.7]} 32... Bb3 {[%clk 0:00:08]} 33. Rb4 {[%clk 0:00:04.2]} 33...
Rxb4 {[%clk 0:00:07.2]} 34. cxb4 {[%clk 0:00:05.1]} 34... Rb5 {[%clk 0:00:06.3]}
35. Rd4 {[%clk 0:00:05]} 35... Bd5 {[%clk 0:00:06.2]} 36. Nd2 {[%clk 0:00:05.2]}
36... Kf8 {[%clk 0:00:04.5]} 37. Nb1 {[%clk 0:00:05.3]} 37... Rb8 {[%clk
0:00:03]} 38. Nc3 {[%clk 0:00:05.4]} 38... Bc6 {[%clk 0:00:03.6]} 39. b5 {[%clk
0:00:04.7]} 39... Be8 {[%clk 0:00:02.7]} 40. Rb4 {[%clk 0:00:02.1]} 40... Ke7
{[%clk 0:00:03]} 41. b6 {[%clk 0:00:02.1]} 41... Kd6 {[%clk 0:00:03.3]} 0-1